bitfinex-derivatives/quotes_BNBF0:USTF0_20241230
["timestamp","ask_amount","ask_price","bid_price","bid_amount"]
[1735574642891,0.2647286,696.26,694.38,1.06464344]
[1735574643195,0.2647286,696.25,694.38,1.06464344]
[1735574643395,0.2647286,696.24,694.39,1.06464344]
[1735574643589,0.2647286,696.23,694.39,1.06464344]
[1735574643792,0.26490572,696.22,694.39,1.06464344]
[1735574643989,0.26490572,696.21,694.39,1.06464344]
[1735574644194,0.26490572,696.2,694.39,1.06464344]
[1735574644395,0.26490572,696.19,694.39,1.06464344]
[1735574644595,0.26490572,696.18,694.39,1.06464344]
[1735574644794,0.26490572,696.17,694.29,1.06464344]
[1735574644994,0.26490572,696.16,694.29,1.06464344]
[1735574645195,0.26490572,696.15,694.29,1.06464344]
[1735574645494,0.26490572,696.14,694.29,1.06464344]
[1735574645693,0.26490572,696.13,694.29,1.06464344]
[1735574645889,0.26490572,696.12,694.22,1.06464344]
[1735574646089,0.26490572,696.11,694.22,1.06464344]
[1735574646293,0.26490572,696.1,694.22,1.06464344]
[1735574646489,0.26490572,696.09,694.22,1.06464344]
[1735574646692,0.26490572,696.08,694.22,1.06464344]
[1735574646889,0.26490572,696.07,694.22,1.06464344]
[1735574647201,0.26490572,696.06,694.2,1.06464344]
[1735574647393,0.26490572,696.05,694.2,1.06464344]
[1735574647596,0.26490572,696.04,694.2,1.06464344]
[1735574647798,0.26490572,696.03,694.2,1.06464344]
[1735574647994,0.26490572,696.02,694.31,1.06464344]
[1735574648190,0.26490572,696.01,694.31,1.06464344]
[1735574648398,0.26490572,696.0,694.31,1.06464344]
[1735574648697,0.26490572,695.99,694.31,1.06464344]
[1735574648896,0.28722013,696.33,694.31,1.06464344]
[1735574648897,0.26490572,695.98,694.31,1.06464344]
[1735574649098,0.26490572,695.97,694.31,1.06464344]
[1735574649298,0.26490572,695.96,694.45,1.06464344]
[1735574649497,0.26490572,695.95,694.45,1.06464344]
[1735574649698,0.26490572,696.32,694.45,1.06464344]
[1735574649898,0.26490572,696.31,694.45,1.06464344]
[1735574650194,0.26490572,696.3,694.43,1.06464344]
[1735574650398,0.28722013,696.33,694.43,1.06464344]
[1735574650399,0.26490572,696.29,694.43,1.06464344]
[1735574650697,0.26490572,696.28,694.43,1.06464344]
[1735574650893,0.26490572,696.27,694.43,1.06464344]
[1735574651099,0.28722013,696.33,694.48,1.06464344]
[1735574651100,0.26490572,696.26,694.48,1.06464344]
[1735574651293,0.26490572,696.25,694.48,1.06464344]
[1735574651497,0.2647887,696.24,694.48,1.06464344]
[1735574651796,0.2647887,696.23,694.48,1.06464344]
[1735574651997,0.2647887,696.22,694.48,1.06464344]
[1735574652199,0.2647887,696.21,694.53,1.06464344]
[1735574652397,0.2647887,696.2,694.53,1.06464344]
[1735574652597,0.2647887,696.32,694.53,1.06464344]
[1735574652793,0.2647887,696.31,694.53,1.06464344]
[1735574652998,0.2647887,696.3,694.53,1.06464344]
[1735574653199,0.2647887,696.29,694.53,1.06464344]
[1735574653399,0.2647887,696.28,694.58,1.06464344]
[1735574653596,0.2647887,696.27,694.58,1.06464344]
[1735574653799,0.2647887,696.26,694.58,1.06464344]
[1735574654003,0.2647887,696.32,694.58,1.06464344]
[1735574654202,0.2647887,696.31,694.65,1.06464344]
[1735574654395,0.2647887,696.3,694.65,1.06464344]
[1735574654700,0.2647887,696.29,694.65,1.06464344]
[1735574654900,0.2647887,696.28,694.65,1.06464344]
[1735574655100,0.2647887,696.27,694.65,1.06464344]
[1735574655302,0.2647887,696.26,694.65,1.06464344]
[1735574655502,0.2647887,696.25,694.66,1.06464344]
[1735574655699,0.2647887,696.24,694.66,1.06464344]
[1735574655894,0.2647887,696.23,694.66,1.06464344]
[1735574656098,0.2647887,696.22,694.66,1.06464344]
[1735574656297,0.2647887,696.21,694.66,1.06464344]
[1735574656502,0.2647887,696.2,694.69,1.06464344]
[1735574656801,0.26471589,696.19,694.69,1.06464344]
[1735574657002,0.26471589,696.18,694.69,1.06464344]
[1735574657302,0.26471589,696.17,694.69,1.06464344]
[1735574657495,0.26471589,696.16,694.69,1.06464344]
[1735574657699,0.26471589,696.15,694.69,1.06464344]
[1735574657901,0.26471589,696.14,694.69,1.06464344]
[1735574658099,0.26471589,696.13,694.69,1.06464344]
[1735574658302,0.26471589,696.12,694.69,1.06464344]
[1735574658496,0.26471589,696.32,694.69,1.06464344]
[1735574658701,0.26471589,696.31,694.69,1.06464344]
[1735574658898,0.26471589,696.3,694.69,1.06464344]
[1735574659202,0.28722013,696.33,694.69,1.06464344]
[1735574659203,0.26471589,696.29,694.69,1.06464344]
[1735574659400,0.26471589,696.28,694.69,1.06464344]
[1735574659604,0.26471589,696.27,694.69,1.06464344]
[1735574659798,0.28722013,696.33,694.69,1.06464344]
[1735574660005,0.26475842,696.32,694.59,1.06464344]
[1735574661508,0.26475842,696.32,694.42,1.06464344]
[1735574661907,0.26478444,696.31,694.42,1.06464344]
[1735574662103,0.26478444,696.3,694.42,1.06464344]
[1735574662304,0.26478444,696.29,694.42,1.06464344]
[1735574662506,0.26478444,696.28,694.54,1.06464344]
[1735574662704,0.26478444,696.27,694.54,1.06464344]
[1735574663010,0.26478444,696.26,694.54,1.06464344]
[1735574663209,0.26478444,696.25,694.54,1.06464344]
[1735574663411,0.26478444,696.24,694.54,1.06464344]
[1735574663610,0.26478444,696.23,694.54,1.06464344]
[1735574663812,0.26478444,696.22,694.62,1.06464344]
[1735574664012,0.26478444,696.21,694.62,1.06464344]
[1735574664311,0.26478444,696.2,694.62,1.06464344]
[1735574664509,0.26475144,696.19,694.62,1.06464344]
[1735574664705,0.28722013,696.33,694.64,1.06464344]
[1735574664706,0.26475144,696.18,694.64,1.06464344]
[1735574664908,0.26475144,696.17,694.64,1.06464344]
[1735574665107,0.26475144,696.16,694.64,1.06464344]
[1735574665311,0.26475144,696.15,694.64,1.06464344]
[1735574665506,0.26475144,696.14,694.64,1.06464344]
[1735574665715,0.26475144,696.13,694.64,1.06464344]
[1735574665910,0.26475144,696.12,694.62,1.06464344]
[1735574666112,0.26475144,696.11,694.62,1.06464344]
[1735574666311,0.26475144,696.1,694.62,1.06464344]
[1735574666507,0.26475144,696.09,694.62,1.06464344]
[1735574666706,0.26475144,696.08,694.62,1.06464344]
[1735574666908,0.26475144,696.07,694.62,1.06464344]
[1735574667112,0.26475144,696.06,694.62,1.06464344]
[1735574667316,0.26475144,696.05,694.52,1.06464344]
[1735574667613,0.26488023,696.04,694.52,1.06464344]
[1735574667811,0.26488023,696.03,694.52,1.06464344]
[1735574668006,0.26488023,696.02,694.52,1.06464344]
[1735574668213,0.26488023,696.01,694.52,1.06464344]
[1735574668410,0.26488023,696.0,694.52,1.06464344]
[1735574668610,0.26488023,696.0,693.99,2.15783464]
[1735574668611,0.26488023,695.99,694.35,1.06464344]
[1735574668816,0.26488023,695.98,694.35,1.06464344]
[1735574669011,0.26488023,695.97,694.35,1.06464344]
[1735574669216,0.26488023,695.96,694.35,1.06464344]
[1735574669411,0.26488023,695.95,694.35,1.06464344]
[1735574669615,0.26492322,695.94,694.35,1.06464344]
[1735574669812,0.28722013,696.33,694.35,1.06464344]
[1735574669813,0.26492322,695.93,694.35,1.06464344]
[1735574670015,0.26492322,695.92,694.35,1.06464344]
[1735574670213,0.26492322,695.92,693.7,2.15783464]
[1735574670214,0.26492322,695.91,694.25,1.06464344]
[1735574670415,0.26492322,695.9,694.25,1.06464344]
[1735574670616,0.26492322,695.89,694.25,1.06464344]
[1735574670911,0.26492322,695.88,694.25,1.06464344]
[1735574671120,0.26492322,695.87,694.25,1.06464344]
[1735574671320,0.26492322,695.86,694.2,1.06464344]
[1735574671514,0.26492322,695.85,694.2,1.06464344]
[1735574671720,0.26492322,695.84,694.2,1.06464344]
[1735574671919,0.26492322,695.83,694.2,1.06464344]
[1735574672114,0.26485898,695.82,694.2,1.06464344]
[1735574672319,0.28722013,696.33,694.3,1.06464344]
[1735574672517,0.26485834,696.32,694.3,1.06464344]
[1735574673322,0.26485834,696.32,694.27,1.06464344]
[1735574674120,0.26485834,696.31,694.27,1.06464344]
[1735574674320,0.26485834,696.3,694.27,1.06464344]
[1735574674626,0.26487482,696.29,694.27,1.06464344]
[1735574674825,0.26487482,696.28,694.27,1.06464344]
[1735574675018,0.26487482,696.27,694.27,1.06464344]
[1735574675219,0.26487006,696.26,694.27,1.06464344]
[1735574675421,0.26487006,696.25,694.35,1.06464344]
[1735574675619,0.26487006,696.24,694.35,1.06464344]
[1735574675821,0.26487006,696.23,694.35,1.06464344]
[1735574676022,0.26487006,696.22,694.35,1.06464344]
[1735574676223,0.26487006,696.21,694.35,1.06464344]
[1735574676420,0.26487006,696.2,694.35,1.06464344]
[1735574676625,0.26487006,696.19,694.39,1.06464344]
[1735574676826,0.26487006,696.18,694.39,1.06464344]
[1735574677027,0.28729027,696.16,694.39,1.06464344]
[1735574677426,0.26490142,696.15,694.39,1.06464344]
[1735574677627,0.26490142,696.14,694.32,1.06464344]
[1735574677827,0.28730678,696.12,694.32,1.06464344]
[1735574678026,0.26490142,696.11,694.32,1.06464344]
[1735574678327,0.28731916,696.09,694.32,1.06464344]
[1735574678527,0.26490142,696.08,694.32,1.06464344]
[1735574678728,0.26490142,696.07,694.32,1.06464344]
[1735574679026,0.26490142,696.06,694.32,1.06464344]
[1735574679228,0.26490142,696.05,694.26,1.06464344]
[1735574679429,0.26490142,696.04,694.26,1.06464344]
[1735574679627,0.26490142,696.03,694.26,1.06464344]
[1735574679828,0.26494288,696.02,694.26,1.06464344]
[1735574680029,0.28735632,696.0,694.26,1.06464344]
[1735574680229,0.26494288,695.99,694.26,1.06464344]
[1735574680432,0.26494288,695.98,694.23,1.06464344]
[1735574680630,0.28737283,695.96,694.23,1.06464344]
[1735574680831,0.26494288,695.95,694.23,1.06464344]
[1735574681032,0.26494288,695.94,694.23,1.06464344]
[1735574681227,0.26494288,695.93,694.23,1.06464344]
[1735574681533,0.26494288,695.92,694.24,1.06464344]
[1735574681733,0.26494288,695.91,694.24,1.06464344]
[1735574681931,0.26494288,695.9,694.24,1.06464344]
[1735574682133,0.26494288,695.89,694.24,1.06464344]
[1735574682327,0.28737283,695.96,694.25,1.06464344]
[1735574682531,0.26496099,695.95,694.25,1.06464344]
[1735574682732,0.26496099,695.94,694.25,1.06464344]
[1735574682927,0.26496099,695.93,694.25,1.06464344]
[1735574683132,0.28737283,695.96,694.25,1.06464344]
[1735574683133,0.26493632,695.92,694.25,1.06464344]
[1735574683434,0.26493632,695.91,694.25,1.06464344]
[1735574683735,0.26493632,695.9,694.22,1.06464344]
[1735574683934,0.26493632,695.89,694.22,1.06464344]
[1735574684134,0.26493632,695.88,694.22,1.06464344]
[1735574684328,0.26493632,695.87,694.22,1.06464344]
[1735574684531,0.26493632,695.86,694.22,1.06464344]
[1735574684734,0.26493632,695.85,694.22,1.06464344]
[1735574684931,0.26493632,695.84,694.24,1.06464344]
[1735574685129,0.26493632,695.83,694.24,1.06464344]
[1735574685334,0.26493632,695.82,694.24,1.06464344]
[1735574685534,0.26493632,695.81,694.24,1.06464344]
[1735574685733,0.28737283,695.96,694.24,1.06464344]
[1735574685930,0.26494804,695.95,694.24,1.06464344]
[1735574686134,0.26494804,695.95,693.81,1.27757213]
[1735574686135,0.26494804,695.94,694.17,1.06464344]
[1735574686331,0.26494804,695.93,694.17,1.06464344]
[1735574686532,0.26494804,695.92,694.17,1.06464344]
[1735574686833,0.26494804,695.91,694.17,1.06464344]
[1735574687036,0.26494804,695.9,694.17,1.06464344]
[1735574687338,0.28740587,695.88,694.17,1.06464344]
[1735574687539,0.28740587,695.88,694.18,1.06464344]
[1735574687737,0.26492839,695.87,694.18,1.06464344]
[1735574688039,0.26492839,695.86,694.18,1.06464344]
[1735574688237,0.26492839,695.85,694.18,1.06464344]
[1735574688439,0.28740587,695.88,694.22,1.06464344]
[1735574688440,0.26492839,695.84,694.22,1.06464344]
[1735574688637,0.26492839,695.83,694.22,1.06464344]
[1735574688840,0.26492839,695.82,694.22,1.06464344]
[1735574689134,0.26492839,695.81,694.22,1.06464344]
[1735574689440,0.26492839,695.8,694.33,1.06464344]
[1735574689637,0.26492839,695.79,694.33,1.06464344]
[1735574689837,0.26492839,695.78,694.33,1.06464344]
[1735574690035,0.26492839,695.77,694.33,1.06464344]
[1735574690240,0.26489449,695.76,694.34,1.06464344]
[1735574690439,0.55235406,695.75,694.34,1.06464344]
[1735574690642,0.28746783,695.73,694.34,1.06464344]
[1735574690839,0.26489449,695.72,694.34,1.06464344]
[1735574691142,0.28748023,695.7,694.34,1.06464344]
[1735574691442,0.26489449,695.69,694.35,1.06464344]
[1735574692034,0.26489449,695.69,694.36,1.06464344]
[1735574692242,0.28749263,695.67,694.36,1.06464344]
[1735574692436,0.26489449,695.66,694.36,1.06464344]
[1735574693441,0.26489449,695.66,694.42,1.06464344]
[1735574694042,0.28749263,695.67,694.42,1.06464344]
[1735574694544,0.28749263,695.67,694.5,1.06464344]
[1735574695642,0.28749263,695.67,694.57,1.06464344]
[1735574697044,0.28749263,695.67,694.55,1.06464344]
[1735574697841,0.28749263,695.67,694.58,1.06464344]
[1735574699339,0.28749263,695.67,694.66,1.06464344]
[1735574700645,0.28749263,695.67,694.7,1.06464344]
[1735574701747,0.28749263,695.67,694.12,0.77314225]
[1735574701748,0.28749263,695.67,694.75,1.06464344]
[1735574702945,0.28749263,695.67,694.92,1.06464344]
[1735574704044,0.28749263,695.67,694.36,1.27757213]
[1735574704045,0.28749263,695.67,694.85,1.06464344]
[1735574705046,0.28749263,695.67,694.8,1.06464344]
[1735574706251,1.06798436,697.12,694.79,1.06464344]
[1735574706549,0.26464219,697.11,694.79,1.06464344]
[1735574706849,0.28693992,697.01,694.79,1.06464344]
[1735574707050,0.26464219,697.0,694.71,1.06464344]
[1735574707245,0.26463263,696.99,694.71,1.06464344]
[1735574707449,0.26463263,696.98,694.71,1.06464344]
[1735574707650,0.26463263,696.97,694.71,1.06464344]
[1735574707851,0.26463263,696.96,694.71,1.06464344]
[1735574708050,0.26463263,696.95,694.71,1.06464344]
[1735574708242,0.26463263,696.94,694.71,1.06464344]
[1735574708448,0.26463263,696.93,694.7,1.06464344]
[1735574708648,0.26463263,696.92,694.7,1.06464344]
[1735574708950,0.26463263,696.91,694.7,1.06464344]
[1735574709153,0.26463263,696.9,694.7,1.06464344]
[1735574709345,0.26463263,696.89,694.7,1.06464344]
[1735574709549,0.26463263,696.89,693.92,2.15783464]
[1735574709550,0.26463263,696.88,694.64,1.06464344]
[1735574709747,0.28693992,697.01,694.64,1.06464344]
[1735574709948,0.26472751,697.0,694.64,1.06464344]
[1735574710250,0.26472751,696.99,694.64,1.06464344]
[1735574710545,0.26472751,696.98,694.64,1.06464344]
[1735574710750,0.26472751,696.97,694.45,1.06464344]
[1735574710947,0.26472751,696.96,694.45,1.06464344]
[1735574711146,0.26472751,696.95,694.45,1.06464344]
[1735574711346,0.26472751,696.94,694.45,1.06464344]
[1735574711545,0.26472751,696.93,694.45,1.06464344]
[1735574711749,0.26472751,696.92,694.45,1.06464344]
[1735574711949,0.26472751,696.91,694.38,1.06464344]
[1735574712149,0.26472751,696.9,694.38,1.06464344]
[1735574712450,0.26476773,696.89,694.38,1.06464344]
[1735574712650,0.26476773,696.88,694.38,1.06464344]
[1735574712850,0.26475174,696.87,694.38,1.06464344]
[1735574713051,0.26475174,696.86,694.38,1.06464344]
[1735574713252,0.26475174,696.85,694.38,1.06464344]
[1735574713452,0.26475174,696.84,694.38,1.06464344]
[1735574713645,0.26475174,696.83,694.38,1.06464344]
[1735574713845,0.26475174,696.82,694.38,1.06464344]
[1735574714049,0.26475174,696.81,694.38,1.06464344]
[1735574714245,0.28693992,697.01,694.52,1.06464344]
[1735574714246,0.26475174,696.8,694.52,1.06464344]
[1735574714447,0.26475174,696.79,694.52,1.06464344]
[1735574714652,0.26475174,696.78,694.52,1.06464344]
[1735574714946,0.26468665,696.77,694.52,1.06464344]
[1735574715147,0.26468665,696.76,694.52,1.06464344]
[1735574715347,0.26468665,696.75,694.52,1.06464344]
[1735574715547,0.26468665,696.74,694.6,1.06464344]
[1735574715745,0.26468665,696.73,694.6,1.06464344]
[1735574715951,0.26468665,696.72,694.6,1.06464344]
[1735574716153,0.26468665,696.71,694.6,1.06464344]
[1735574716451,0.26468665,696.7,694.63,1.06464344]
[1735574716754,0.28693992,697.01,694.63,1.06464344]
[1735574716755,0.26468665,696.69,694.63,1.06464344]
[1735574716951,0.26468665,696.68,694.63,1.06464344]
[1735574717151,0.26468665,696.67,694.63,1.06464344]
[1735574717352,0.26465215,696.66,694.63,1.06464344]
[1735574717551,0.26465215,696.65,694.63,1.06464344]
[1735574717753,0.26465215,696.64,694.63,1.06464344]
[1735574717955,0.26465215,696.63,694.63,1.06464344]
[1735574718248,0.26465215,696.63,693.96,2.15783464]
[1735574718249,0.26465215,696.62,694.69,1.06464344]
[1735574718446,0.26465215,696.61,694.69,1.06464344]
[1735574718648,0.26465215,696.6,694.69,1.06464344]
[1735574718854,0.26465215,696.59,694.69,1.06464344]
[1735574719052,0.26465215,696.58,694.69,1.06464344]
[1735574719252,0.28693992,697.01,694.67,1.06464344]
[1735574719253,0.26465215,696.57,694.67,1.06464344]
[1735574719450,0.26465215,696.56,694.67,1.06464344]
[1735574719652,0.26465215,696.55,694.67,1.06464344]
[1735574719855,0.26467837,696.54,694.67,1.06464344]
[1735574720048,0.26467837,696.53,694.67,1.06464344]
[1735574720248,0.26467837,696.52,694.67,1.06464344]
[1735574720454,0.28693992,697.01,694.74,1.06464344]
[1735574720653,0.26469152,697.0,694.74,1.06464344]
[1735574720949,0.26469152,696.99,694.74,1.06464344]
[1735574721153,0.26469152,696.98,694.74,1.06464344]
[1735574721352,0.28693992,697.01,694.74,1.06464344]
[1735574721353,0.26469152,696.97,694.74,1.06464344]
[1735574721555,0.26469152,696.96,694.63,1.06464344]
[1735574721754,0.26469152,696.95,694.63,1.06464344]
[1735574721953,0.26469152,696.94,694.63,1.06464344]
[1735574722154,0.26469152,696.93,694.63,1.06464344]
[1735574722353,0.26469152,696.92,694.63,1.06464344]
[1735574722556,0.26466894,696.91,694.67,1.06464344]
[1735574722754,0.26467245,696.9,694.67,1.06464344]
[1735574722949,0.26467245,696.89,694.67,1.06464344]
[1735574723156,0.26467245,696.88,694.67,1.06464344]
[1735574723354,0.28693992,697.01,694.77,1.06464344]
[1735574723355,0.26467245,696.87,694.77,1.06464344]
[1735574723555,0.26467245,696.86,694.77,1.06464344]
[1735574723749,0.26467245,696.85,694.77,1.06464344]
[1735574723946,0.26467245,696.84,694.77,1.06464344]
[1735574724152,0.26467245,696.83,694.77,1.06464344]
[1735574724455,0.26467245,696.82,694.7,1.06464344]
[1735574724655,0.26467245,696.81,694.7,1.06464344]
[1735574724850,0.26467245,696.8,694.7,1.06464344]
[1735574725052,0.26467245,696.79,694.7,1.06464344]
[1735574725253,0.26467245,696.78,694.7,1.06464344]
[1735574725450,0.26467245,696.77,694.65,1.06464344]
[1735574725656,0.26467245,696.76,694.65,1.06464344]
[1735574725850,0.26467245,696.75,694.65,1.06464344]
[1735574726048,0.26467245,696.74,694.65,1.06464344]
[1735574726253,0.26467245,696.73,694.65,1.06464344]
[1735574726456,0.26467245,696.72,694.77,1.06464344]
[1735574726650,0.26467245,696.71,694.77,1.06464344]
[1735574726852,0.26467245,696.7,694.77,1.06464344]
[1735574727058,0.26467245,696.69,694.77,1.06464344]
[1735574727259,0.26467245,696.68,694.84,1.06464344]
[1735574727452,0.26467245,696.67,694.84,1.06464344]
[1735574727657,0.26467245,696.66,694.84,1.06464344]
[1735574727857,0.26467245,696.65,694.84,1.06464344]
[1735574728057,0.26467245,696.64,694.84,1.06464344]
[1735574728258,0.26467245,696.63,694.84,1.06464344]
[1735574728558,0.26467245,696.62,694.68,1.06464344]
[1735574728758,0.26467245,696.61,694.68,1.06464344]
[1735574728953,0.26467245,696.6,694.68,1.06464344]
[1735574729159,0.26467245,696.59,694.68,1.06464344]
[1735574729362,0.26467245,696.58,694.67,1.06464344]
[1735574729560,0.26467245,696.57,694.67,1.06464344]
[1735574729759,0.26467245,696.56,694.67,1.06464344]
[1735574730060,0.26467245,696.55,694.67,1.06464344]
[1735574730360,1.06798436,696.49,694.63,1.06464344]
[1735574730558,0.26483639,696.48,694.63,1.06464344]
[1735574730855,0.26483639,696.47,694.63,1.06464344]
[1735574731161,0.26483639,696.46,694.6,1.06464344]
[1735574731356,0.26483639,696.45,694.6,1.06464344]
[1735574731661,0.26483639,696.44,694.13,0.77456909]
[1735574731961,0.26483639,696.43,694.13,0.77456909]
[1735574732264,0.26483639,696.42,694.13,0.77456909]
[1735574732556,7.42214871,699.29,694.81,1.05831569]
[1735574732557,0.26483639,696.41,694.81,1.05831569]
[1735574732756,0.26476591,696.4,694.81,1.05831569]
[1735574732957,0.26476591,696.39,694.81,1.05831569]
[1735574733154,0.26476591,696.38,694.81,1.05831569]
[1735574733360,0.26476591,696.37,694.81,1.05831569]
[1735574733561,0.26476591,696.36,694.81,1.05831569]
[1735574733763,1.28813666,696.76,694.85,1.05831569]
[1735574733764,0.26476591,696.35,694.85,1.05831569]
[1735574733959,1.07344721,696.55,694.85,1.05831569]
[1735574733960,0.26476591,696.34,694.85,1.05831569]
[1735574734159,1.07344721,696.55,694.85,1.05831569]
[1735574734160,0.26476591,696.33,694.85,1.05831569]
[1735574734363,0.26476591,696.32,694.85,1.05831569]
[1735574734561,0.26476591,696.31,694.85,1.05831569]
[1735574734766,0.26476591,696.3,694.82,1.05831569]
[1735574735064,0.26476591,696.29,694.82,1.05831569]
[1735574735262,0.26476591,696.28,694.82,1.05831569]
[1735574735462,0.26475187,696.27,694.82,1.05831569]
[1735574735663,0.26475187,696.26,694.82,1.05831569]
[1735574735863,0.26475187,696.25,694.85,1.05831569]
[1735574736058,0.26474456,696.24,694.85,1.05831569]
[1735574736259,0.26474456,696.23,694.85,1.05831569]
[1735574736564,0.26474456,696.22,694.85,1.05831569]
[1735574736771,0.26474456,696.21,694.85,1.05831569]
[1735574737066,0.26474456,696.2,694.91,1.05831569]
[1735574737261,0.26474456,696.19,694.91,1.05831569]
[1735574737462,0.26474456,696.18,694.91,1.05831569]
[1735574737660,0.26474456,696.17,694.91,1.05831569]
[1735574737857,0.26474456,696.16,694.91,1.05831569]
[1735574738064,0.26474456,696.69,694.87,1.05831569]
[1735574738257,0.26474456,696.68,694.87,1.05831569]
[1735574738460,0.26474456,696.67,694.87,1.05831569]
[1735574738659,0.26474456,696.66,694.87,1.05831569]
[1735574738864,0.26474456,696.65,694.87,1.05831569]
[1735574739064,0.26474456,696.64,694.96,1.05831569]
[1735574739257,0.26474456,696.63,694.96,1.05831569]
[1735574739461,0.26474456,696.62,694.96,1.05831569]
[1735574739763,0.26474456,696.61,694.96,1.05831569]
[1735574739965,0.26474456,696.6,694.96,1.05831569]
[1735574740165,0.26474456,696.59,694.96,1.05831569]
[1735574740364,0.26474456,696.58,694.97,1.05831569]
[1735574740559,1.07344721,696.85,694.97,1.05831569]
[1735574740761,0.26468328,696.84,694.97,1.05831569]
[1735574740965,0.26468328,696.83,694.97,1.05831569]
[1735574741161,0.26468328,696.82,694.99,1.05831569]
[1735574741365,0.26468328,696.81,694.99,1.05831569]
[1735574741568,0.26468328,696.8,694.99,1.05831569]
[1735574741760,0.26468328,696.79,694.99,1.05831569]
[1735574741959,0.26468328,696.78,694.99,1.05831569]
[1735574742165,0.26468328,696.77,694.99,1.05831569]
[1735574742364,0.26468328,696.76,694.99,1.05831569]
[1735574742567,0.26468328,696.75,695.1,1.05831569]
[1735574742766,0.26468328,696.74,695.1,1.05831569]
[1735574742962,0.26468328,696.73,695.1,1.05831569]
[1735574743268,0.26464995,696.72,695.1,1.05831569]
[1735574743467,0.26464995,696.71,695.1,1.05831569]
[1735574743662,0.26464995,696.7,695.1,1.05831569]
[1735574743866,0.26464995,696.69,695.1,1.05831569]
[1735574744067,0.26464995,696.68,695.1,1.05831569]
[1735574744266,0.26464995,696.67,695.1,1.05831569]
[1735574744468,0.26464995,696.66,695.1,1.05831569]
[1735574744668,0.26464995,696.65,695.1,1.05831569]
[1735574744869,0.63502938,697.2,695.08,1.05831569]
[1735574744870,0.26464995,696.64,695.08,1.05831569]
[1735574745070,0.26464995,696.63,695.08,1.05831569]
[1735574745266,0.26464995,696.62,695.08,1.05831569]
[1735574745467,0.26464995,696.61,695.08,1.05831569]
[1735574745669,1.07344721,696.89,695.08,1.05831569]
[1735574746076,0.26464195,696.88,695.06,1.05831569]
[1735574746268,0.26464195,696.87,695.06,1.05831569]
[1735574746469,0.26464195,696.91,695.06,1.05831569]
[1735574746765,0.26464195,696.9,695.06,1.05831569]
[1735574746965,0.26464195,696.89,695.06,1.05831569]
[1735574747166,0.26464195,696.89,694.73,1.05831569]
[1735574747167,0.26464195,696.88,695.04,1.05831569]
[1735574747369,0.26464195,696.87,695.04,1.05831569]
[1735574747566,0.26464195,697.0,695.04,1.05831569]
[1735574747764,0.26464195,696.99,695.04,1.05831569]
[1735574747969,0.26464195,696.98,695.04,1.05831569]
[1735574748169,1.07344721,697.29,695.04,1.05831569]
[1735574748372,0.26454022,697.0,695.04,1.05831569]
[1735574748574,0.26454022,696.99,695.26,1.05831569]
[1735574748776,0.26454022,696.98,695.26,1.05831569]
[1735574748975,0.26454022,696.97,695.26,1.05831569]
[1735574749277,0.26454022,696.96,695.26,1.05831569]
[1735574749473,0.26454022,696.95,695.26,1.05831569]
[1735574749776,0.26454022,696.94,695.29,1.05831569]
[1735574749976,0.26454022,696.93,695.29,1.05831569]
[1735574750173,0.26454022,696.92,695.29,1.05831569]
[1735574750377,0.26454022,696.91,695.29,1.05831569]
[1735574750574,0.26454022,696.9,695.29,1.05831569]
[1735574750775,0.26453731,696.89,695.22,1.05831569]
[1735574750970,0.26453731,696.88,695.22,1.05831569]
[1735574751170,0.26453731,696.87,695.22,1.05831569]
[1735574751370,0.26453731,697.0,695.22,1.05831569]
[1735574751574,1.07344721,697.39,695.22,1.05831569]
[1735574751575,0.26453731,696.99,695.22,1.05831569]
[1735574751776,0.26453731,696.98,695.22,1.05831569]
[1735574751973,0.26453731,696.97,695.16,1.05831569]
[1735574752172,0.26453731,696.96,695.16,1.05831569]
[1735574752377,0.26453731,696.95,695.16,1.05831569]
[1735574752581,0.26453731,696.94,695.16,1.05831569]
[1735574752873,0.26453731,696.93,695.16,1.05831569]
[1735574753077,0.26453731,696.92,695.16,1.05831569]
[1735574753277,0.26453731,696.91,695.16,1.05831569]
[1735574753472,0.26453731,696.9,695.16,1.05831569]
[1735574753676,0.26453731,696.89,695.16,1.05831569]
[1735574753875,0.26453731,696.88,695.16,1.05831569]
[1735574754075,0.26453731,696.87,695.16,1.05831569]
[1735574754281,0.26453731,696.86,695.16,1.05831569]
[1735574754481,0.26453731,696.85,695.12,1.05831569]
[1735574754779,0.26453731,696.84,695.12,1.05831569]
[1735574754978,0.26453731,696.83,695.12,1.05831569]
[1735574755180,0.26453731,696.82,695.12,1.05831569]
[1735574755381,0.26453731,696.81,695.05,1.05831569]
[1735574755680,0.26453731,696.8,695.05,1.05831569]
[1735574755874,1.07344721,697.47,695.05,1.05831569]
[1735574756078,0.2645698,697.0,695.05,1.05831569]
[1735574756279,0.2645698,696.99,695.05,1.05831569]
[1735574756579,0.2645698,696.98,695.03,1.05831569]
[1735574756775,0.2645698,696.97,695.03,1.05831569]
[1735574756982,0.2645698,696.96,695.03,1.05831569]
[1735574757178,0.2645698,696.95,695.03,1.05831569]
[1735574757378,0.2645698,696.94,695.03,1.05831569]
[1735574757579,0.2645698,696.93,695.03,1.05831569]
[1735574757779,0.2645698,696.92,694.8,1.05831569]
[1735574757979,0.2645698,696.91,694.8,1.05831569]
[1735574758175,0.2645698,696.9,694.8,1.05831569]